bitfinex-derivatives/quotes_BTCF0:USTF0_20250722
["timestamp","ask_amount","ask_price","bid_price","bid_amount"]
[1753197800670,0.3795365,119170.0,119160.0,0.68083904]
[1753197800874,0.3795365,119170.0,119160.0,0.65632593]
[1753197801070,0.74890616,119170.0,119160.0,0.63792]
[1753197801271,0.80389322,119170.0,119160.0,0.63792]
[1753197801680,1.16469322,119170.0,119160.0,0.63792]
[1753197801978,0.74890616,119170.0,119160.0,0.63792]
[1753197802173,1.16469322,119170.0,119160.0,0.6567]
[1753197802371,1.16469322,119170.0,119160.0,0.69137]
[1753197803980,1.16469322,119170.0,119160.0,0.06253]
[1753197804176,0.74890616,119170.0,119160.0,0.69025]
[1753197804480,1.16469322,119170.0,119160.0,0.69025]
[1753197804681,0.74890616,119170.0,119160.0,0.73923]
[1753197806275,0.74890616,119170.0,119160.0,0.11151]
[1753197806471,0.38810616,119170.0,119160.0,0.73927]
[1753197806780,0.74890616,119170.0,119160.0,0.76383925]
[1753197807379,0.74890616,119170.0,119160.0,0.11151]
[1753197807571,0.74890616,119170.0,119160.0,0.73919]
[1753197808281,0.74890616,119170.0,119160.0,0.77994]
[1753197809274,1.10399124,119170.0,119160.0,0.77994]
[1753197809471,1.09542158,119170.0,119160.0,0.77994]
[1753197810483,0.7403365,119170.0,119160.0,0.73919]
[1753197810780,1.10385344,119170.0,119160.0,0.77994]
[1753197812074,0.74876836,119170.0,119160.0,0.77994]
[1753197812276,1.10385344,119170.0,119160.0,0.77994]
[1753197812470,1.10385344,119170.0,119160.0,0.8495741]
[1753197813271,1.10385344,119170.0,119160.0,0.8795084]
[1753197813884,0.74876836,119170.0,119160.0,0.8495741]
[1753197814084,1.10385344,119170.0,119160.0,0.87951062]
[1753197814294,1.10385344,119170.0,119160.0,0.87950654]
[1753197814491,1.10385344,119170.0,119160.0,0.19926944]
[1753197814682,1.10385344,119170.0,119160.0,0.82606944]
[1753197816286,0.74876836,119170.0,119160.0,0.82606944]
[1753197816588,1.10385344,119170.0,119160.0,0.82606944]
[1753197817184,0.1312,119160.0,119140.0,7e-08]
[1753197817388,0.1312,119160.0,119130.0,0.05913064]
[1753197817389,0.3795788,119140.0,119130.0,0.02996017]
[1753197817586,0.07275,119120.0,119110.0,0.75667]
[1753197817782,0.3781569,119120.0,119110.0,0.75667]
[1753197818181,0.73324198,119120.0,119110.0,0.79718]
[1753197818387,0.7389569,119120.0,119110.0,0.79718]
[1753197818586,0.7212669,119120.0,119110.0,0.79718]
[1753197818885,0.7392369,119120.0,119110.0,0.75626]
[1753197819085,1.09432198,119120.0,119110.0,0.75626]
[1753197819285,0.7392369,119120.0,119110.0,0.75726]
[1753197819487,0.7392369,119120.0,119110.0,0.11134]
[1753197819788,1.15568299,119120.0,119110.0,0.71355]
[1753197820180,1.15568299,119120.0,119110.0,0.03322]
[1753197820386,1.15568299,119120.0,119110.0,0.6819]
[1753197820591,1.15568299,119120.0,119110.0,0.03322]
[1753197820889,1.15568299,119120.0,119110.0,0.005]
[1753197821092,1.8126227,119120.0,119110.0,0.005]
[1753197821391,0.3888573,119100.0,119090.0,0.01866]
[1753197821597,0.3761592,119090.0,119080.0,0.69551263]
[1753197821791,1.15340529,119090.0,119080.0,0.69551263]
[1753197822294,0.79260529,119090.0,119080.0,0.86337593]
[1753197822488,0.3582592,119090.0,119080.0,1.01615593]
[1753197823295,0.3582592,119090.0,119080.0,1.01915593]
[1753197824293,0.3582592,119090.0,119080.0,1.02115593]
[1753197824797,0.19041,119090.0,119080.0,1.02115593]
[1753197824992,0.06305,119090.0,119080.0,1.79840202]
[1753197825294,0.2308992,119090.0,119080.0,1.38195593]
[1753197825692,0.3486192,119090.0,119080.0,1.21409263]
[1753197825893,0.3486192,119090.0,119080.0,1.38195593]
[1753197826293,0.3179692,119090.0,119080.0,1.38195593]
[1753197826595,0.06305,119090.0,119080.0,1.38195593]
[1753197826794,0.2308992,119090.0,119080.0,1.38195593]
[1753197826993,0.2308992,119090.0,119080.0,1.79840202]
[1753197827797,0.2308992,119090.0,119080.0,1.38195593]
[1753197829896,1.7308992,119090.0,119080.0,1.38195593]
[1753197830594,1.5,119090.0,119080.0,1.79840202]
[1753197830998,1.5,119090.0,119080.0,1.88701741]
[1753197831201,1.5,119090.0,119080.0,1.47057132]
[1753197831397,1.6678492,119090.0,119080.0,1.88701741]
[1753197831599,1.5,119090.0,119080.0,1.88701741]
[1753197831795,1.6678492,119090.0,119080.0,1.88701741]
[1753197832191,1.5,119090.0,119080.0,1.88701741]
[1753197832391,0.2519648,119100.0,119090.0,0.1678492]
[1753197832591,0.2519648,119100.0,119090.0,1.02469529]
[1753197832592,0.2517648,119100.0,119090.0,1.02469529]
[1753197832797,0.3612548,119100.0,119090.0,1.02469529]
[1753197833201,0.3800448,119100.0,119090.0,1.02469529]
[1753197833603,0.2773343,119100.0,119090.0,1.02469529]
[1753197833803,0.2142843,119100.0,119090.0,1.02769529]
[1753197834604,0.2773343,119100.0,119090.0,1.02769529]
[1753197835800,0.3582543,119100.0,119090.0,0.4415]
[1753197836004,0.3770443,119100.0,119090.0,0.69626]
[1753197836201,0.79349039,119100.0,119090.0,1.2249092]
[1753197836401,0.3770443,119100.0,119090.0,1.2249092]
[1753197836601,0.3770443,119100.0,119090.0,1.2567092]
[1753197837203,0.3770443,119100.0,119090.0,1.2586092]
[1753197837204,0.3364143,119100.0,119090.0,1.2586092]
[1753197837511,0.3057643,119100.0,119090.0,1.67505529]
[1753197837695,0.12828,119100.0,119090.0,1.67505529]
[1753197837898,0.12848,119110.0,119100.0,0.2137352]
[1753197838102,0.2773111,119110.0,119100.0,1.02468129]
[1753197839003,0.2773111,119110.0,119100.0,1.02568129]
[1753197839408,0.2961011,119110.0,119100.0,0.6092352]
[1753197839805,0.3770211,119110.0,119100.0,0.4395]
[1753197840008,0.79346719,119110.0,119100.0,1.05494]
[1753197840309,0.79346719,119110.0,119100.0,1.2227751]
[1753197840606,0.3770211,119110.0,119100.0,1.2545751]
[1753197840811,0.12848,119120.0,119110.0,0.2474211]
[1753197841106,0.04664,119130.0,119120.0,0.247407]
[1753197841312,0.04664,119130.0,119120.0,1.67948564]
[1753197841313,1.62768617,119130.0,119120.0,1.67948564]
[1753197841610,1.81426907,119130.0,119120.0,1.34990798]
[1753197841805,1.7960729,119130.0,119120.0,1.34990798]
[1753197842309,0.32335046,119130.0,119120.0,1.34990798]
[1753197842512,0.14591756,119130.0,119120.0,1.34990798]
[1753197842710,0.14791756,119130.0,119120.0,1.34990798]
[1753197843310,0.31571046,119130.0,119120.0,1.76635407]
[1753197843512,0.31371046,119130.0,119120.0,1.76735407]
[1753197843710,0.31471046,119130.0,119120.0,1.76735407]
[1753197843907,0.31471046,119130.0,119120.0,0.46002098]
[1753197843908,0.36498046,119130.0,119120.0,0.46002098]
[1753197844109,0.3770351,119100.0,119090.0,0.0459]
[1753197844309,0.79348119,119100.0,119090.0,0.8844692]
[1753197844514,0.7378351,119100.0,119090.0,0.8844692]
[1753197845015,0.3770351,119100.0,119090.0,0.8844692]
[1753197845405,0.79348119,119100.0,119090.0,0.8852292]
[1753197845611,0.3770351,119100.0,119090.0,0.8852292]
[1753197845913,0.3770351,119100.0,119090.0,0.8872292]
[1753197846414,0.39471958,119100.0,119090.0,0.8872292]
[1753197846609,0.39471958,119100.0,119090.0,0.8882292]
[1753197847811,0.39471958,119100.0,119090.0,0.72038]
[1753197848315,0.81116567,119100.0,119090.0,0.72038]
[1753197848515,0.39471958,119100.0,119090.0,0.72038]
[1753197849117,0.39471958,119100.0,119090.0,0.8882292]
[1753197849518,0.39471958,119100.0,119090.0,0.72038]
[1753197850316,0.39471958,119100.0,119090.0,0.003]
[1753197850317,0.75551958,119100.0,119090.0,0.003]
[1753197850514,1.58843087,119100.0,119090.0,0.003]
[1753197850715,0.2425692,119090.0,119080.0,0.67516]
[1753197851018,0.3829033,119080.0,119070.0,1.20546928]
[1753197851216,0.3829033,119080.0,119060.0,0.07799357]
[1753197851217,0.2207874,119070.0,119060.0,0.07799357]
[1753197851416,0.2704715,119060.0,119050.0,0.73457064]
[1753197851612,0.7437315,119060.0,119050.0,0.73457064]
[1753197852019,0.7437315,119060.0,119050.0,0.73791064]
[1753197852219,0.7437315,119060.0,119050.0,0.06247064]
[1753197852420,0.3829315,119060.0,119050.0,0.73771064]
[1753197852622,0.3829315,119060.0,119050.0,0.94752624]
[1753197852822,0.3829315,119060.0,119050.0,0.77962064]
[1753197853624,0.3829315,119060.0,119050.0,0.78362064]
[1753197853823,0.3829315,119060.0,119050.0,0.72449]
[1753197854116,0.3829315,119060.0,119050.0,0.72649]
[1753197854322,0.3829315,119060.0,119050.0,0.8943956]
[1753197854520,0.3829315,119060.0,119050.0,0.96823451]
[1753197854720,0.3829315,119060.0,119050.0,1.00065451]
[1753197855223,0.3829315,119060.0,119050.0,0.98680008]
[1753197856330,0.3082115,119060.0,119050.0,1.76660617]
[1753197856529,0.3082115,119060.0,119050.0,1.70662169]
[1753197856530,0.04719,119060.0,119050.0,1.70662169]
[1753197856734,0.299354,119070.0,119060.0,0.2481215]
[1753197857030,0.299354,119070.0,119060.0,1.02536759]
[1753197857031,0.04719,119070.0,119060.0,1.02536759]
[1753197857328,0.2150674,119070.0,119060.0,1.02536759]
[1753197857820,0.2101848,119080.0,119070.0,0.2481074]
[1753197857821,0.3832797,119080.0,119070.0,0.2481074]
[1753197858020,0.3830797,119080.0,119070.0,1.36661205]
[1753197858327,0.3921297,119080.0,119070.0,1.36661205]
[1753197858523,0.3921297,119080.0,119070.0,0.94807596]
[1753197858827,0.4668497,119080.0,119070.0,0.77972856]
[1753197859416,0.4668497,119080.0,119070.0,0.78072856]
[1753197859615,0.4668497,119080.0,119070.0,0.10864856]
[1753197859818,0.4668497,119080.0,119070.0,0.74918856]
[1753197860017,1.24409579,119080.0,119070.0,0.03097766]
[1753197860221,0.8276497,119080.0,119070.0,0.03097766]
[1753197860630,0.8276497,119080.0,119070.0,0.03197766]
[1753197861128,1.24409579,119080.0,119070.0,0.03197766]
[1753197861728,0.2208156,119050.0,119040.0,0.12395746]
[1753197861932,0.3829456,119050.0,119040.0,0.80099746]
[1753197862634,0.3829456,119050.0,119040.0,0.74084448]
[1753197863134,0.3829456,119050.0,119040.0,0.74584448]
[1753197863523,0.3829456,119050.0,119040.0,0.74884448]
[1753197863723,0.3829456,119050.0,119040.0,0.74384448]
[1753197863924,0.3829456,119050.0,119040.0,0.74584448]
[1753197864321,0.3829456,119050.0,119040.0,0.74484448]
[1753197866231,0.3829456,119050.0,119040.0,0.68486]
[1753197867135,0.3829456,119050.0,119040.0,0.8527797]
[1753197867432,0.3829456,119050.0,119040.0,0.68486]
[1753197867932,0.3829456,119050.0,119040.0,0.74481782]
[1753197868133,0.3829456,119050.0,119040.0,0.8527797]
[1753197868334,0.3829456,119050.0,119040.0,0.68486]
[1753197868533,0.3829456,119050.0,119040.0,0.68152]
[1753197868828,0.79939169,119050.0,119040.0,0.68486]
[1753197869033,0.3829456,119050.0,119040.0,0.9271097]
[1753197869230,0.3829456,119050.0,119040.0,0.72677]
[1753197869624,0.3829456,119050.0,119040.0,0.04925]
[1753197869924,0.3829456,119050.0,119040.0,0.72445]
[1753197870927,0.3829456,119050.0,119040.0,0.78440932]
[1753197873231,0.79939169,119050.0,119040.0,0.78440932]
[1753197873431,0.3829456,119050.0,119040.0,0.78440932]
[1753197875333,0.3829456,119050.0,119040.0,0.06395932]
[1753197875334,1.16019169,119050.0,119040.0,0.06395932]
[1753197875529,1.16019169,119050.0,119040.0,0.73551932]
[1753197877635,1.16019169,119050.0,119040.0,0.67556]
[1753197878533,1.16019169,119050.0,119040.0,0.004]
[1753197879333,1.82943169,119050.0,119040.0,0.004]
[1753197879532,1.66152609,119050.0,119030.0,0.0052]
[1753197879738,2.63694579,119040.0,119030.0,0.0052]
[1753197879936,2.65510579,119040.0,119030.0,0.0052]
[1753197881230,2.65510579,119040.0,119030.0,0.00535879]
[1753197881638,2.65510579,119040.0,119030.0,0.00635879]
[1753197881842,2.65510579,119040.0,119030.0,0.00835879]
[1753197882041,2.66368378,119040.0,119030.0,0.00835879]
[1753197882840,2.66368378,119040.0,119030.0,0.00735879]
[1753197883043,2.66368378,119040.0,119030.0,0.00935879]
[1753197883733,2.68039079,119040.0,119030.0,0.00935879]
[1753197885639,2.2639447,119040.0,119030.0,0.00935879]
[1753197885844,2.25536671,119040.0,119030.0,0.75339879]
[1753197886244,2.25536671,119040.0,119030.0,0.75158879]
[1753197886639,2.25536671,119040.0,119030.0,0.91952259]
[1753197887243,2.25536671,119040.0,119030.0,0.75158879]
[1753197888547,2.6718128,119040.0,119030.0,0.72007879]
[1753197888741,2.25536671,119040.0,119030.0,0.72007879]
[1753197889245,2.6718128,119040.0,119030.0,0.67431879]
[1753197892036,2.6718128,119040.0,119030.0,0.67211879]
[1753197892943,2.6718128,119040.0,119030.0,0.00935879]
[1753197893539,3.3331728,119040.0,119030.0,0.00935879]
[1753197893740,1.8331728,119040.0,119030.0,0.00935879]
[1753197893940,1.8331728,119040.0,119010.0,1.16124]
[1753197893941,0.3778879,119020.0,119010.0,1.16124]
[1753197894140,0.79433399,119020.0,119010.0,1.8224]
[1753197894340,0.3778879,119020.0,119010.0,1.8224]
[1753197894546,0.167962,119010.0,119000.0,0.6646783]
[1753197894746,1.795572,119010.0,119000.0,1.3252783]
[1753197894946,1.795572,119010.0,119000.0,1.2832861]
[1753197895146,1.795572,119010.0,119000.0,1.11531]
[1753197895449,1.795572,119010.0,119000.0,1.07309]
[1753197895648,1.795572,119010.0,119000.0,0.71189]
[1753197896048,1.795572,119010.0,119000.0,1.2456661]
[1753197896649,1.795572,119010.0,119000.0,1.10766]
[1753197896849,1.795572,119010.0,119000.0,1.07669]
[1753197897248,1.795572,119010.0,119000.0,0.66612]
[1753197897449,1.795572,119010.0,119000.0,0.67519]
[1753197897644,1.795572,119010.0,119000.0,0.71805]
[1753197897840,1.795572,119010.0,119000.0,0.41973]
[1753197898040,1.795572,119010.0,119000.0,0.71805]
[1753197898248,1.795572,119010.0,119000.0,1.2468261]
[1753197898649,1.795572,119010.0,119000.0,1.2777961]
[1753197898850,1.795572,119010.0,119000.0,1.12083]
[1753197899246,1.795572,119010.0,119000.0,1.2888061]
[1753197899948,1.795572,119010.0,119000.0,1.12083]
[1753197900149,1.795572,119010.0,119000.0,1.2888061]
[1753197900344,1.60945,119010.0,119000.0,1.70525219]
[1753197900545,0.04823,119020.0,119010.0,0.167962]
[1753197900748,0.3377396,119030.0,119020.0,0.2508479]
[1753197900950,0.3375396,119030.0,119020.0,1.69882399]
[1753197901148,0.3375396,119030.0,119020.0,1.2823779]
[1753197901344,0.3375396,119030.0,119020.0,1.69882399]
[1753197901549,0.2773838,119030.0,119020.0,1.79199523]
[1753197901750,0.10945,119030.0,119020.0,1.79199523]
[1753197901948,0.37825001,119040.0,119030.0,0.2618438]
[1753197902146,1.89621001,119040.0,119030.0,0.6226438]
[1753197902744,1.89621001,119040.0,119030.0,0.45471]
[1753197902943,1.89621001,119040.0,119030.0,0.41273]
[1753197906053,1.89721001,119040.0,119030.0,0.41273]
[1753197906561,1.89721001,119040.0,119030.0,0.5806638]
[1753197907850,1.89721001,119040.0,119030.0,0.41273]
[1753197908051,1.89821001,119040.0,119030.0,0.41273]
[1753197908252,1.89821001,119040.0,119030.0,0.5806638]
[1753197908448,1.89821001,119040.0,119030.0,0.41273]
[1753197909857,1.89821001,119040.0,119030.0,0.5806638]
[1753197910359,1.89821001,119040.0,119030.0,0.41273]
[1753197910552,1.89821001,119040.0,119030.0,0.5806638]
[1753197910859,1.89821001,119040.0,119030.0,0.41273]
[1753197911356,1.89821001,119040.0,119030.0,0.5806638]
[1753197911862,1.89821001,119040.0,119030.0,0.41273]
[1753197913157,2.2540484,119040.0,119030.0,0.41273]
[1753197913458,1.89821001,119040.0,119030.0,0.41273]
[1753197913658,2.2540484,119040.0,119030.0,0.41273]
[1753197914064,1.89821001,119040.0,119030.0,0.41273]
[1753197914469,2.2540484,119040.0,119030.0,0.41273]
[1753197915262,2.2540484,119040.0,119030.0,0.5806638]
[1753197915463,1.89821001,119040.0,119030.0,0.5806638]
[1753197915966,1.89821001,119040.0,119030.0,0.6031886]
[1753197916663,1.89821001,119040.0,119030.0,0.4352548]
[1753197916972,1.89821001,119040.0,119030.0,0.6031886]
[1753197919271,1.89821001,119040.0,119030.0,0.63312641]
[1753197920271,1.89821001,119040.0,119030.0,0.61059499]
[1753197920472,1.89821001,119040.0,119030.0,0.63312539]
[1753197920664,1.89821001,119040.0,119030.0,0.61059499]
[1753197920968,1.89821001,119040.0,119030.0,0.63312391]
[1753197921170,1.89821001,119040.0,119030.0,0.61059499]
[1753197921372,1.89821001,119040.0,119030.0,0.63312392]
[1753197921566,1.89821001,119040.0,119030.0,0.98896231]
[1753197921873,1.81424561,119040.0,119030.0,1.02899231]
[1753197922170,1.81423671,119040.0,119030.0,1.00646338]
[1753197922367,1.81423671,119040.0,119030.0,1.02898968]
[1753197922567,1.81423671,119040.0,119030.0,1.00646338]
[1753197922761,1.81423671,119040.0,119030.0,0.6731511]
[1753197922963,1.81423671,119040.0,119030.0,0.99590338]
[1753197923165,1.81423671,119040.0,119030.0,1.61379338]
[1753197923663,1.81423671,119040.0,119030.0,1.63631899]
[1753197924066,1.81423671,119040.0,119030.0,1.2802407]
[1753197924271,1.81423671,119040.0,119030.0,1.25771509]
[1753197924472,1.81423671,119040.0,119030.0,1.08978119]
[1753197924970,1.81423671,119040.0,119030.0,1.25771509]
[1753197925273,1.81423671,119040.0,119030.0,1.61355348]
[1753197925466,1.81423671,119040.0,119030.0,1.29774509]
[1753197925772,1.81423671,119040.0,119030.0,1.65358348]
[1753197926369,1.7975297,119040.0,119030.0,1.61355348]
[1753197926564,1.7975297,119040.0,119030.0,1.25771509]
[1753197926771,1.7975297,119040.0,119030.0,1.61355348]
[1753197927370,1.7975297,119040.0,119030.0,1.44573958]
[1753197927569,1.7975297,119040.0,119030.0,1.61367338]
[1753197928061,1.7975297,119040.0,119030.0,1.25783499]
[1753197928276,1.7975297,119040.0,119030.0,1.25755499]
[1753197928468,1.7975297,119040.0,119030.0,1.61339338]
[1753197929163,1.7975297,119040.0,119030.0,0.96643338]
[1753197929466,1.7975297,119040.0,119030.0,1.61227338]
[1753197930271,1.7975297,119040.0,119030.0,1.04564119]
[1753197930475,2.8867584,119040.0,119030.0,0.02993119]
[1753197930670,2.17508162,119040.0,119030.0,0.02255128]
[1753197930875,2.51416809,119040.0,119030.0,0.04104795]
[1753197932372,2.51416809,119040.0,119030.0,0.70032795]
[1753197932578,2.51416809,119040.0,119030.0,0.04104795]
[1753197932766,0.13044,119030.0,119010.0,0.0450596]
[1753197932966,0.2499621,119010.0,119000.0,0.7042596]
[1753197933167,1.09583049,119010.0,119000.0,0.7042596]
[1753197933381,1.6679762,119000.0,118990.0,0.72850257]
[1753197933574,2.50465459,119000.0,118990.0,0.66164]
[1753197934378,2.51320687,119000.0,118990.0,0.66164]
[1753197935183,2.50465459,119000.0,118990.0,0.72786425]
[1753197935884,2.50465459,119000.0,118990.0,0.74622425]
[1753197936478,2.50465459,119000.0,118990.0,0.92316455]
[1753197936781,1.7791262,119000.0,118990.0,0.95517455]
[1753197937081,1.7791262,119000.0,118990.0,1.03996455]
[1753197937383,1.7791262,119000.0,118990.0,1.75660294]
[1753197937584,1.7791262,119000.0,118990.0,1.39580294]
[1753197937882,1.7791262,119000.0,118990.0,1.22781264]
[1753197938078,1.7791262,119000.0,118990.0,1.14302264]
[1753197938385,2.50465459,119000.0,118990.0,0.66264]
[1753197938680,2.50465459,119000.0,118990.0,0.001]
[1753197938882,2.50465459,119000.0,118990.0,0.66204]
[1753197939072,2.50465459,119000.0,118990.0,0.6618]
[1753197939985,2.50465459,119000.0,118970.0,0.05995932]
[1753197939986,0.3679945,118980.0,118970.0,0.05995932]
[1753197940178,0.3680086,118970.0,118960.0,0.75703737]
[1753197940379,1.08464699,118970.0,118960.0,0.75703737]
[1753197940875,0.7288086,118970.0,118960.0,0.75703737]
[1753197941070,0.7288086,118970.0,118960.0,0.09687737]
[1753197941282,1.08464699,118970.0,118960.0,0.09687737]
[1753197941486,1.08464699,118970.0,118960.0,0.17484972]
[1753197941678,0.7288086,118970.0,118960.0,0.14714972]
[1753197941877,1.08464699,118970.0,118960.0,0.003]
[1753197943176,1.14639917,118970.0,118960.0,0.005]
[1753197943483,1.80611917,118970.0,118960.0,0.005]
[1753197943671,1.14639917,118970.0,118960.0,0.005]
[1753197943876,0.7288086,118970.0,118960.0,0.02341]
[1753197944077,0.7288086,118970.0,118960.0,0.0327]
[1753197945779,0.7198786,118970.0,118960.0,0.06204]
[1753197945979,0.7198786,118970.0,118960.0,1.12414327]
[1753197945980,0.3590786,118970.0,118960.0,1.12414327]
[1753197946186,0.18207,118970.0,118960.0,1.18410259]
[1753197946484,0.3500885,118970.0,118960.0,1.18410259]
[1753197946677,0.15142,118970.0,118960.0,1.28067907]
[1753197946877,0.3194385,118970.0,118960.0,1.28067907]
[1753197947478,0.3590785,118970.0,118960.0,0.6654758]
[1753197947683,0.3590785,118970.0,118960.0,0.6215258]
[1753197947884,0.3590785,118970.0,118960.0,0.68148512]
[1753197948292,0.3590785,118970.0,118960.0,0.89346782]
[1753197949886,1.8590785,118970.0,118960.0,0.92304782]
[1753197950185,1.8590785,118970.0,118960.0,1.34063839]
[1753197951282,1.5,118970.0,118960.0,1.34063839]
[1753197951681,1.7309885,118970.0,118960.0,0.92304782]
[1753197951881,1.7790385,118970.0,118960.0,1.58212782]
[1753197952179,1.7790385,118970.0,118960.0,1.55254782]
[1753197952685,1.7790385,118970.0,118960.0,1.97013839]
[1753197952983,1.7790385,118970.0,118960.0,1.99876839]
[1753197953381,1.7790385,118970.0,118960.0,1.93880907]
[1753197953874,1.7790385,118970.0,118960.0,1.91017907]
[1753197954076,1.7790385,118970.0,118960.0,1.98101798]
[1753197954280,1.7790385,118970.0,118960.0,1.98201798]
[1753197954480,1.7790385,118970.0,118960.0,1.98001798]
[1753197956184,1.7790385,118970.0,118960.0,1.97929798]
[1753197956385,1.7790385,118970.0,118960.0,0.90334741]
[1753197956579,1.7790385,118970.0,118960.0,0.85939741]
[1753197956785,1.7790385,118970.0,118960.0,1.51687741]
[1753197956985,1.7790385,118970.0,118960.0,1.56082741]
[1753197958085,1.7790385,118970.0,118960.0,0.81724741]
[1753197958289,1.7876785,118970.0,118960.0,0.12733782]
[1753197958489,1.7876785,118970.0,118960.0,0.78357782]
[1753197958687,2.20526907,118970.0,118960.0,0.78357782]
[1753197959087,2.56606907,118970.0,118960.0,0.78357782]
[1753197959290,2.56606907,118970.0,118960.0,0.78273782]
[1753197959489,3.22146907,118970.0,118960.0,0.001]
[1753197959691,1.72146907,118970.0,118960.0,0.06108202]
[1753197960286,1.3038785,118970.0,118960.0,0.06108202]
[1753197960483,1.72146907,118970.0,118960.0,0.06108202]
[1753197961492,1.06606907,118970.0,118960.0,0.06108202]
[1753197961790,1.72110907,118970.0,118960.0,0.06108202]
[1753197961980,1.06606907,118970.0,118960.0,0.06108202]
[1753197962289,1.72370907,118970.0,118960.0,0.06108202]
[1753197962688,0.3501168,118950.0,118940.0,0.07383891]
[1753197962887,1.12850737,118950.0,118940.0,0.07383891]
[1753197963089,1.78602737,118950.0,118940.0,0.07383891]
[1753197963290,1.74198742,118950.0,118940.0,0.07383891]
[1753197963991,1.74198742,118950.0,118940.0,0.07583891]
[1753197964185,1.74198742,118950.0,118940.0,0.002]
[1753197964789,1.74098742,118950.0,118940.0,0.002]
[1753197964990,0.2084609,118940.0,118930.0,0.07383891]
[1753197965294,1.06740727,118940.0,118930.0,0.07383891]
[1753197965796,1.72332727,118940.0,118930.0,0.07383891]
[1753197965986,1.72332727,118940.0,118930.0,0.09224891]
[1753197966182,1.73158886,118940.0,118930.0,0.09224891]
[1753197967294,1.73158886,118940.0,118930.0,0.02041]
[1753197967492,0.1680751,118930.0,118920.0,0.07383891]
[1753197967796,0.3501592,118920.0,118910.0,0.75563]
[1753197968293,0.3501592,118920.0,118910.0,1.3191433]
[1753197968294,0.18207,118920.0,118910.0,1.3191433]
[1753197968493,0.18207,118920.0,118910.0,1.67561967]
[1753197968689,0.3501592,118920.0,118910.0,1.02097967]
[1753197968990,0.13402,118920.0,118910.0,1.75042198]
[1753197969189,0.3021092,118920.0,118910.0,1.75042198]
[1753197969388,0.3021092,118920.0,118910.0,1.68221967]
[1753197969588,0.3498992,118920.0,118910.0,1.68221967]
[1753197970092,0.10337,118920.0,118910.0,1.76578301]
[1753197970298,1.7310592,118920.0,118910.0,1.78096679]
[1753197970495,1.7310592,118920.0,118910.0,1.78396679]
[1753197970895,1.7788492,118920.0,118910.0,0.92453959]
[1753197971395,1.7788492,118920.0,118910.0,1.28533959]
[1753197971587,1.7788492,118920.0,118910.0,1.32445959]
[1753197971987,1.7788492,118920.0,118910.0,1.32361959]
[1753197972293,1.7788492,118920.0,118910.0,1.49172289]
[1753197972490,1.7788492,118920.0,118910.0,1.50013135]
[1753197972695,1.7788492,118920.0,118910.0,1.56016664]
[1753197972897,1.7788492,118920.0,118910.0,1.32461408]
[1753197973092,1.7788492,118920.0,118910.0,1.97709408]
[1753197973289,1.7788492,118920.0,118910.0,1.38273488]
[1753197973494,1.7788492,118920.0,118910.0,1.96868562]
[1753197973996,1.7310592,118920.0,118910.0,2.00329562]
[1753197974301,1.7788492,118920.0,118910.0,0.98241488]
[1753197974600,2.55749664,118920.0,118910.0,0.8319935]
[1753197975098,2.55749664,118920.0,118910.0,0.80370776]
[1753197975293,2.1396492,118920.0,118910.0,0.80370776]
[1753197975495,2.55749664,118920.0,118910.0,0.12392776]
[1753197975895,2.55749664,118920.0,118910.0,0.05500426]
[1753197976198,2.55749664,118920.0,118910.0,0.007]
[1753197976900,2.55749664,118920.0,118910.0,0.006]
[1753197977100,2.55749664,118920.0,118910.0,0.003]
[1753197977295,2.55749664,118920.0,118910.0,0.005]
[1753197977488,2.19669664,118920.0,118910.0,0.005]
[1753197977688,2.19669664,118920.0,118910.0,0.27368756]
[1753197977689,1.7788492,118920.0,118910.0,0.27368756]
[1753197977889,1.56297,118920.0,118910.0,1.14403503]
[1753197978100,1.56497,118920.0,118910.0,1.28969569]
[1753197978297,1.502,118920.0,118910.0,1.2296604]
[1753197978601,0.1738442,118940.0,118930.0,0.3300342]
[1753197978602,0.06342,118940.0,118930.0,0.3300342]
[1753197978896,0.2314809,118940.0,118930.0,2.31243165]
[1753197979097,0.3020609,118940.0,118930.0,1.22362165]
[1753197979294,0.3498509,118940.0,118930.0,1.27337297]
[1753197979496,0.3498509,118940.0,118930.0,0.82458622]
[1753197980002,0.3508509,118940.0,118930.0,0.82458622]
[1753197980300,0.3508509,118940.0,118930.0,0.85456831]
[1753197980502,0.3508509,118940.0,118930.0,0.82472831]
[1753197980698,0.76869834,118940.0,118930.0,0.17140831]
[1753197980896,0.3518509,118940.0,118930.0,1.02200331]
[1753197981108,0.3518509,118940.0,118930.0,1.09573331]
[1753197981401,0.3518509,118940.0,118930.0,1.06112331]
[1753197982198,0.3518509,118940.0,118930.0,0.89304831]
[1753197982396,0.3040609,118940.0,118930.0,1.42192331]
[1753197982600,0.3040609,118940.0,118930.0,1.91933151]
[1753197982806,0.2742609,118940.0,118930.0,1.50148407]
[1753197983804,0.2742609,118940.0,118930.0,1.91933151]
[1753197984003,0.3040609,118940.0,118930.0,1.46687407]
[1753197984205,0.3518509,118940.0,118930.0,1.22386622]
[1753197984504,0.3518509,118940.0,118930.0,1.82852216]
[1753197984903,0.3518509,118940.0,118930.0,1.41067472]
[1753197985101,0.3518509,118940.0,118930.0,1.44065681]
[1753197985301,0.3518509,118940.0,118930.0,1.47526681]
[1753197985698,0.3518509,118940.0,118930.0,1.27258181]
[1753197985899,0.3518509,118940.0,118930.0,1.44065691]
[1753197986205,0.3518509,118940.0,118930.0,1.27258181]
[1753197987599,0.3518509,118940.0,118930.0,1.44065691]
[1753197988203,0.3518509,118940.0,118930.0,1.47526691]
[1753197988802,0.3518509,118940.0,118930.0,1.47330691]
[1753197991304,0.3040609,118940.0,118930.0,1.51825767]
[1753197991701,0.2742609,118940.0,118930.0,1.93610511]
[1753197992003,0.3518509,118940.0,118930.0,0.64547907]
[1753197992409,0.3518509,118940.0,118930.0,1.27201698]
[1753197992915,0.3518509,118940.0,118930.0,1.32089293]
[1753197993110,0.3518509,118940.0,118930.0,1.48896793]
[1753197993409,0.3518509,118940.0,118930.0,1.49350682]
[1753197995013,0.3040609,118940.0,118930.0,1.49350682]
[1753197995209,0.3040609,118940.0,118930.0,1.50174369]
[1753197995516,0.3040609,118940.0,118930.0,1.91135426]
[1753197995813,0.3040609,118940.0,118930.0,1.49350682]
[1753197997208,0.3518509,118940.0,118930.0,1.84989648]
[1753197998315,0.3040609,118940.0,118930.0,1.80494572]
[1753197999011,0.2334809,118940.0,118930.0,1.80494572]
[1753197999914,0.2721409,118940.0,118930.0,1.80494572]
[1753198000117,0.3472309,118940.0,118930.0,0.93027829]
[1753198000310,0.70362056,118940.0,118930.0,0.92647829]
[1753198000610,1.06442056,118940.0,118930.0,0.08277207]
[1753198000808,0.7080309,118940.0,118930.0,0.71673207]
[1753198001009,1.06442056,118940.0,118930.0,0.73447207]
[1753198001210,1.06442056,118940.0,118930.0,0.82121207]